bitfinex-derivatives/quotes_BTCF0:USTF0_20241125
["timestamp","ask_amount","ask_price","bid_price","bid_amount"]
[1732548054434,1.165135,95305.0,95304.0,0.00128902]
[1732548054728,1.5006096,95305.0,95304.0,0.00128902]
[1732548054954,1.50069732,95305.0,95304.0,0.00128902]
[1732548055114,1.50069732,95305.0,95280.0,0.00157428]
[1732548055115,0.052461,95293.0,95280.0,0.00157428]
[1732548055317,0.53338038,95293.0,95280.0,0.00157428]
[1732548055518,0.052861,95293.0,95280.0,0.00157428]
[1732548055714,0.052861,95293.0,95275.0,0.3608]
[1732548055715,0.17296233,95293.0,95275.0,0.3608]
[1732548055930,0.07395427,95293.0,95275.0,0.3608]
[1732548056120,0.43475427,95293.0,95278.0,0.052469]
[1732548056324,0.43475427,95293.0,95283.0,0.3608]
[1732548056927,0.48133886,95293.0,95283.0,0.3608]
[1732548057130,0.0004,95293.0,95292.0,0.41335059]
[1732548057334,0.0004,95293.0,95292.0,0.05255059]
[1732548057523,0.38637886,95300.0,95292.0,0.02105614]
[1732548057524,0.26624,95300.0,95292.0,0.02105614]
[1732548057900,8.772e-05,95305.0,95303.0,0.052456]
[1732548058054,8.772e-05,95305.0,95304.0,0.6756]
[1732548058229,0.4852,95333.0,95314.0,0.05245]
[1732548058422,0.53764,95333.0,95328.0,0.052442]
[1732548058632,0.052442,95328.0,95326.0,0.3608]
[1732548059036,0.0004,95327.0,95326.0,0.052443]
[1732548059237,0.00052791,95327.0,95315.0,0.3283]
[1732548059533,0.0004,95316.0,95315.0,0.3283]
[1732548059837,0.0004,95316.0,95314.0,0.05324901]
[1732548060023,0.0004,95316.0,95315.0,0.3608]
[1732548060224,0.1204205,95327.0,95317.0,0.052448]
[1732548060531,0.00012791,95327.0,95326.0,0.41404301]
[1732548061033,0.1204205,95327.0,95326.0,0.36160001]
[1732548061060,0.00012791,95327.0,95326.0,0.36160001]
[1732548061337,0.00012791,95327.0,95326.0,0.00080001]
[1732548061539,0.05257091,95327.0,95326.0,0.00080001]
[1732548062240,0.00012791,95327.0,95326.0,0.36160001]
[1732548062832,0.00157394,95340.0,95339.0,0.052436]
[1732548063026,0.00157394,95340.0,95339.0,0.413236]
[1732548063027,0.12214252,95340.0,95339.0,0.413236]
[1732548063229,0.12214252,95340.0,95331.0,0.3608]
[1732548063230,0.00157394,95340.0,95331.0,0.3608]
[1732548063547,0.00157394,95340.0,95326.0,0.02093922]
[1732548063548,0.052443,95327.0,95326.0,0.00080001]
[1732548063941,0.05255494,95327.0,95322.0,0.01998546]
[1732548064031,0.12061425,95326.0,95319.0,0.00157364]
[1732548064235,0.052444,95324.0,95323.0,0.052445]
[1732548064429,0.12061425,95325.0,95323.0,0.052445]
[1732548064731,0.00011194,95327.0,95326.0,0.052443]
[1732548064934,0.26624,95345.0,95334.0,0.052439]
[1732548065262,0.15036574,95353.0,95339.0,0.7216]
[1732548065449,0.12067739,95348.0,95347.0,0.052432]
[1732548065769,0.12067739,95356.0,95354.0,0.052428]
[1732548065959,0.15036574,95363.0,95352.0,0.00080001]
[1732548065960,0.12067739,95357.0,95355.0,0.688]
[1732548066235,0.40278356,95370.0,95335.0,0.3608]
[1732548066236,0.00011476,95356.0,95335.0,0.3608]
[1732548066432,0.12065549,95345.0,95335.0,0.3608]
[1732548066646,0.12065549,95345.0,95336.0,0.3156]
[1732548066951,0.052436,95339.0,95336.0,0.3156]
[1732548067253,0.12065549,95344.0,95323.0,0.413245]
[1732548067540,0.12065549,95334.0,95323.0,0.3608]
[1732548067739,0.15081937,95342.0,95315.0,0.3166]
[1732548067740,0.052442,95328.0,95315.0,0.3166]
[1732548067932,0.05103775,95327.0,95302.0,0.3608]
[1732548068142,0.052449,95315.0,95314.0,0.00071229]
[1732548068355,1.21556675,95315.0,95314.0,0.00071229]
[1732548068540,1.53072675,95315.0,95314.0,0.00032907]
[1732548068730,2.04156357,95315.0,95314.0,0.00032907]
[1732548068931,1.86158403,95315.0,95284.0,0.00157413]
[1732548069136,1.86158403,95315.0,95230.0,0.22234467]
[1732548069137,0.59394159,95293.0,95292.0,5.9e-07]
[1732548069440,0.59394159,95293.0,95236.0,0.3164]
[1732548069441,0.052466,95285.0,95236.0,0.3164]
[1732548069744,0.3608,95256.0,95236.0,0.3164]
[1732548069946,0.87172557,95255.0,95236.0,0.3164]
[1732548070304,0.12036557,95251.0,95245.0,0.3608]
[1732548070493,0.12036557,95248.0,95243.0,0.052489]
[1732548070674,0.12028889,95244.0,95243.0,0.052489]
[1732548070837,0.15045697,95248.0,95241.0,0.3608]
[1732548071034,0.12030839,95250.0,95243.0,0.052489]
[1732548071233,4.3e-07,95253.0,95249.0,0.3608]
[1732548071435,0.24058519,95285.0,95280.0,0.052468]
[1732548071729,0.24058519,95285.0,95284.0,0.0004]
[1732548071938,0.26624,95301.0,95293.0,0.052461]
[1732548072137,8.123e-05,95300.0,95293.0,0.052461]
[1732548072423,8.123e-05,95300.0,95298.0,0.052458]
[1732548072944,0.00157398,95341.0,95331.0,0.05244]
[1732548073278,0.00157398,95341.0,95340.0,0.052436]
[1732548073488,0.00157398,95341.0,95340.0,0.367116]
[1732548073981,0.3608,95364.0,95357.0,0.052426]
[1732548073983,0.3608,95364.0,95340.0,0.61468]
[1732548073984,0.3608,95364.0,95363.0,0.052423]
[1732548074149,0.36237356,95374.0,95363.0,0.052423]
[1732548074334,0.36237356,95374.0,95358.0,0.00013067]
[1732548074335,7.764e-05,95364.0,95358.0,0.00013067]
[1732548074583,7.764e-05,95364.0,95362.0,0.052423]
[1732548075040,0.052425,95360.0,95358.0,0.00013067]
[1732548075439,0.00080001,95359.0,95358.0,0.00013067]
[1732548075634,0.26700001,95359.0,95358.0,0.00013067]
[1732548075834,0.00080001,95359.0,95358.0,0.00013067]
[1732548076240,0.05322501,95359.0,95358.0,0.00013067]
[1732548076846,0.00080001,95359.0,95358.0,0.00013067]
[1732548077083,0.00080001,95359.0,95358.0,0.72795667]
[1732548077740,0.00080001,95359.0,95358.0,0.36093067]
[1732548078039,0.00080001,95359.0,95358.0,0.67553067]
[1732548079643,0.00080001,95359.0,95358.0,0.36093067]
[1732548080943,0.00080001,95359.0,95358.0,1.02795667]
[1732548081543,6.5e-07,95365.0,95359.0,0.3146]
[1732548081748,6.5e-07,95365.0,95364.0,0.3608]
[1732548082296,0.02256843,95403.0,95364.0,0.6612]
[1732548082549,0.02256843,95403.0,95399.0,0.413603]
[1732548082550,0.00157291,95403.0,95399.0,0.413603]
[1732548082755,0.10007994,95400.0,95399.0,0.3612]
[1732548082972,0.36587994,95400.0,95399.0,0.3612]
[1732548083150,1.16535994,95400.0,95399.0,0.0004]
[1732548083345,1.82615994,95400.0,95379.0,0.00157263]
[1732548083551,0.052414,95380.0,95379.0,0.00157263]
[1732548083847,0.318614,95380.0,95379.0,0.00157263]
[1732548084042,0.633134,95380.0,95379.0,0.00157263]
[1732548084239,0.633134,95380.0,95345.0,0.3608]
[1732548084240,0.052425,95359.0,95345.0,0.3608]
[1732548084440,0.803185,95359.0,95335.0,0.3608]
[1732548084654,0.803185,95359.0,95337.0,0.052437]
[1732548084841,0.803185,95359.0,95335.0,0.3608]
[1732548084842,0.803585,95359.0,95335.0,0.3608]
[1732548085247,0.803585,95359.0,95340.0,0.052435]
[1732548085445,0.75116,95359.0,95350.0,0.05243]
[1732548085646,0.803585,95359.0,95343.0,0.3608]
[1732548085845,0.75116,95359.0,95343.0,0.3608]
[1732548086348,0.48536,95359.0,95357.0,0.052426]
[1732548086566,0.0004,95359.0,95358.0,0.61473067]
[1732548086737,0.2658,95383.0,95378.0,0.052415]
[1732548086997,0.318212,95383.0,95378.0,0.052415]
[1732548087170,0.318212,95383.0,95379.0,0.0004]
[1732548087375,0.48496,95389.0,95379.0,0.31492]
[1732548087960,0.48496,95389.0,95379.0,0.0004]
[1732548088355,0.3608,95404.0,95379.0,0.61492]
[1732548088543,0.3608,95404.0,95393.0,0.052406]
[1732548088544,0.0524,95404.0,95393.0,0.052406]
[1732548088847,0.3608,95406.0,95393.0,0.052406]
[1732548088848,0.052403,95399.0,95393.0,0.052406]
[1732548089054,0.052403,95399.0,95390.0,0.3608]
[1732548089055,0.3608,95406.0,95390.0,0.3608]
[1732548089456,0.0004,95391.0,95390.0,0.3608]
[1732548090046,0.0004,95391.0,95390.0,0.67528]
[1732548090248,0.0004,95391.0,95390.0,0.3608]
[1732548090757,0.052807,95391.0,95390.0,0.3608]
[1732548090958,0.0004,95391.0,95390.0,0.3608]
[1732548091255,0.0004,95391.0,95381.0,0.052413]
[1732548091256,0.05241,95386.0,95381.0,0.01964645]
[1732548091449,0.0004,95391.0,95378.0,0.3608]
[1732548091653,0.052808,95391.0,95389.0,0.3608]
[1732548091906,0.052808,95391.0,95390.0,0.0004]
[1732548091907,0.052408,95391.0,95390.0,0.0004]
[1732548093856,0.05249336,95399.0,95390.0,0.0004]
[1732548094070,9.036e-05,95399.0,95395.0,0.3608]
[1732548094263,0.052404,95397.0,95395.0,0.3608]
[1732548095658,9.036e-05,95399.0,95386.0,0.3608]
[1732548095864,0.052406,95395.0,95394.0,0.3608]
[1732548096170,9.036e-05,95399.0,95394.0,0.3608]
[1732548096171,9.036e-05,95399.0,95397.0,0.052404]
[1732548096484,9.036e-05,95399.0,95398.0,0.67528]
[1732548096664,9.036e-05,95399.0,95398.0,0.67568]
[1732548097075,9.036e-05,95399.0,95398.0,0.97568]
[1732548097257,0.00157238,95420.0,95399.0,0.31448]
[1732548097258,0.052396,95412.0,95399.0,0.31448]
[1732548097483,0.052394,95416.0,95413.0,0.052395]
[1732548097763,0.00157238,95420.0,95415.0,0.0004]
[1732548097974,0.00157238,95420.0,95419.0,0.3608]
[1732548098168,0.00167357,95420.0,95419.0,0.3612]
[1732548098463,0.00010119,95420.0,95419.0,0.3612]
[1732548099189,0.00010119,95420.0,95419.0,0.0004]
[1732548099493,0.31450119,95420.0,95380.0,0.3608]
[1732548099691,0.052413,95381.0,95380.0,0.3608]
[1732548100254,0.26568,95386.0,95380.0,0.3608]
[1732548100465,0.052413,95382.0,95380.0,0.3608]
[1732548100871,0.052417,95374.0,95373.0,0.36237255]
[1732548101274,0.052817,95374.0,95373.0,0.36237255]
[1732548102969,0.0004,95374.0,95373.0,0.36237255]
[1732548103162,0.0004,95374.0,95373.0,0.67693255]
[1732548103674,0.0004,95374.0,95373.0,0.69653982]
[1732548103966,0.0004,95374.0,95373.0,0.69496727]
[1732548104768,0.0004,95374.0,95373.0,0.67536]
[1732548105069,0.052424,95362.0,95360.0,0.3608]
[1732548105374,9.876e-05,95381.0,95360.0,0.3608]
[1732548105375,0.0004,95361.0,95360.0,0.413225]
[1732548105890,0.0004,95361.0,95360.0,0.3608]
[1732548108373,0.0004,95361.0,95360.0,0.6754]
[1732548109770,0.052824,95361.0,95360.0,0.3608]
[1732548109964,0.052824,95361.0,95349.0,0.3608]
[1732548109965,0.052425,95359.0,95349.0,0.3608]
[1732548110292,0.052825,95359.0,95353.0,0.052428]
[1732548110581,0.052825,95359.0,95358.0,0.36093067]
[1732548110774,0.318545,95359.0,95358.0,0.00013067]
[1732548111072,0.318545,95359.0,95358.0,6.7e-07]
[1732548111272,0.933145,95359.0,95358.0,6.7e-07]
[1732548111882,0.633145,95359.0,95358.0,6.7e-07]
[1732548112179,0.93322454,95359.0,95358.0,6.7e-07]
[1732548112386,0.63322454,95359.0,95358.0,6.7e-07]
[1732548112608,0.052447,95319.0,95302.0,0.3608]
[1732548112857,0.052447,95319.0,95286.0,0.3608]
[1732548112858,0.052457,95301.0,95286.0,0.3608]
[1732548113192,0.052457,95301.0,95294.0,0.3608]
[1732548113341,0.052857,95301.0,95296.0,0.02001596]
[1732548113470,0.00053162,95301.0,95296.0,0.38081596]
[1732548113777,0.00053162,95301.0,95300.0,0.4148]
[1732548114077,0.26528,95316.0,95300.0,0.7148]
[1732548114268,0.052449,95316.0,95315.0,0.3608]
[1732548114470,0.051949,95316.0,95315.0,0.3608]
[1732548114673,0.052447,95320.0,95318.0,0.052447]
[1732548114878,0.413228,95353.0,95315.0,0.3608]
[1732548114879,0.3608,95353.0,95316.0,0.31472]
[1732548115072,0.3085,95357.0,95338.0,0.3608]
[1732548115073,0.05401008,95339.0,95338.0,0.3608]
[1732548115270,0.05408695,95339.0,95338.0,0.3612]
[1732548115469,0.05408695,95339.0,95338.0,0.0004]
[1732548115869,0.052443,95327.0,95316.0,0.6741]
[1732548116183,0.052443,95327.0,95307.0,0.3608]
[1732548116184,0.052453,95308.0,95307.0,0.3608]
[1732548116667,0.052853,95308.0,95307.0,0.3608]
[1732548118471,0.052457,95301.0,95299.0,0.01986484]
[1732548118878,0.052857,95301.0,95300.0,0.4148]
[1732548119669,0.0004,95301.0,95300.0,0.4148]
[1732548119867,0.0004,95301.0,95300.0,0.4098]
[1732548121078,0.2654,95325.0,95301.0,0.052457]
[1732548121287,0.2654,95325.0,95324.0,0.3608]
[1732548121488,0.2654,95325.0,95324.0,0.0004]
[1732548121687,0.2654,95325.0,95324.0,0.3612]
[1732548122069,0.00165095,95339.0,95324.0,0.3612]
[1732548122290,0.05408795,95339.0,95337.0,0.3608]
[1732548122580,0.00165095,95339.0,95338.0,0.0004]
[1732548122780,0.05408695,95339.0,95338.0,0.0004]
[1732548123573,0.05251287,95339.0,95338.0,0.0004]
[1732548123983,0.05251287,95339.0,95338.0,0.052837]
[1732548123984,7.687e-05,95339.0,95338.0,0.052837]
[1732548124816,0.00157407,95359.0,95338.0,0.052837]
[1732548124817,0.00157407,95359.0,95358.0,0.052426]
[1732548124961,0.00157407,95359.0,95358.0,0.413226]
[1732548125107,0.00157407,95359.0,95358.0,0.728226]
[1732548125305,0.00157407,95359.0,95358.0,1.089026]
[1732548125592,0.00170386,95359.0,95358.0,1.089026]
[1732548125781,0.00012979,95359.0,95358.0,1.089026]
[1732548125990,0.0015731,95379.0,95358.0,1.3366]
[1732548126184,0.48504,95384.0,95378.0,0.3608]
[1732548126377,0.48504,95384.0,95380.0,0.052413]
[1732548126585,0.537451,95384.0,95383.0,0.0004]
[1732548126998,0.53754531,95384.0,95383.0,0.0004]
[1732548127898,9.431e-05,95384.0,95383.0,0.0004]
[1732548128311,0.14424102,95400.0,95383.0,0.0004]
[1732548128607,0.14424102,95400.0,95399.0,0.0004]
[1732548128808,0.052414,95379.0,95378.0,0.3608]
[1732548129312,0.0005243,95379.0,95378.0,0.3608]
[1732548129622,0.0005243,95379.0,95353.0,0.052428]
[1732548129623,0.0005243,95379.0,95363.0,0.01974215]
[1732548129886,0.052422,95364.0,95347.0,0.3608]
[1732548130022,0.052422,95364.0,95330.0,0.413241]
[1732548130023,0.052428,95355.0,95330.0,0.413241]
[1732548130211,0.14424102,95340.0,95330.0,0.052441]
[1732548130408,0.0004,95331.0,95330.0,0.0200376]
[1732548130737,0.0004,95331.0,95329.0,0.052441]
[1732548130957,0.0004,95331.0,95329.0,0.413241]
[1732548131196,0.3608,95352.0,95329.0,0.413241]
[1732548131197,0.00047855,95330.0,95329.0,0.413241]
[1732548131400,0.00956231,95330.0,95329.0,0.727921]
[1732548131608,3.1e-07,95330.0,95329.0,1.027921]
[1732548131805,0.00157355,95350.0,95349.0,0.052431]
[1732548132012,0.00157355,95350.0,95349.0,0.67544]
[1732548132321,0.26532,95361.0,95349.0,0.3612]
[1732548132517,0.26532,95361.0,95352.0,0.052429]
[1732548132518,0.052428,95355.0,95352.0,0.052429]
[1732548132719,8.649e-05,95354.0,95349.0,0.3608]
[1732548132911,8.649e-05,95354.0,95353.0,0.052428]
[1732548133923,8.649e-05,95354.0,95353.0,0.367028]
[1732548133924,4.9e-07,95354.0,95353.0,0.367028]
[1732548134220,4.9e-07,95354.0,95353.0,0.667028]
[1732548134612,0.317726,95395.0,95383.0,0.052412]
[1732548134817,0.02098759,95393.0,95383.0,0.413212]
[1732548135709,0.0016631,95384.0,95383.0,0.413212]
[1732548135911,8.951e-05,95384.0,95383.0,0.413212]
[1732548136635,8.951e-05,95384.0,95383.0,0.3608]
[1732548138018,0.09816866,95404.0,95403.0,0.052401]
[1732548138250,0.09816866,95404.0,95403.0,0.413201]
[1732548138428,0.052389,95425.0,95419.0,0.052392]
[1732548138658,0.05239,95423.0,95421.0,0.3608]
[1732548138821,0.00012709,95422.0,95421.0,0.3608]
[1732548140321,0.00012709,95422.0,95409.0,0.01979105]
[1732548140535,0.05251809,95422.0,95413.0,0.052395]
[1732548140726,0.00012709,95422.0,95411.0,0.413196]
[1732548141227,0.00012709,95422.0,95411.0,0.3608]
[1732548141428,0.00012709,95422.0,95416.0,0.052394]
[1732548142022,0.00012709,95422.0,95419.0,0.3608]
[1732548142219,0.00012709,95422.0,95411.0,0.3608]
[1732548142220,0.052396,95412.0,95411.0,0.3608]
[1732548142723,0.00012709,95422.0,95411.0,0.3608]
[1732548142928,0.00012709,95422.0,95421.0,0.3608]
[1732548143837,0.00157216,95444.0,95438.0,0.052381]
[1732548144025,0.00157216,95444.0,95442.0,0.3608]
[1732548144219,0.00157216,95444.0,95443.0,0.0004]
[1732548144621,0.02097711,95446.0,95443.0,0.0004]
[1732548144822,0.00013585,95444.0,95443.0,0.0004]
[1732548145025,0.00013585,95444.0,95442.0,0.3608]
[1732548145419,0.00013585,95444.0,95443.0,0.052379]
[1732548147135,0.05251485,95444.0,95442.0,0.3608]
[1732548147318,0.00013585,95444.0,95442.0,0.3608]
[1732548147525,0.00013585,95444.0,95403.0,0.052401]
[1732548147526,0.05238,95442.0,95425.0,0.3608]
[1732548147720,0.052385,95433.0,95424.0,0.3608]
[1732548147929,0.0004,95426.0,95418.0,0.07329058]
[1732548148227,0.3608,95438.0,95400.0,0.00013125]
[1732548148228,0.052401,95402.0,95400.0,0.00013125]
[1732548148539,0.2651333,95401.0,95400.0,0.00013125]
[1732548148720,0.5796133,95401.0,95400.0,1e-08]
[1732548149221,0.02151253,95401.0,95400.0,1e-08]
[1732548149427,0.0005333,95401.0,95400.0,0.31448001]
[1732548150049,0.0529353,95401.0,95400.0,1e-08]
[1732548150261,0.0529353,95401.0,95390.0,0.3608]
[1732548150262,0.0005333,95401.0,95390.0,0.3608]
[1732548150419,0.052407,95391.0,95390.0,0.3608]
[1732548150615,0.0004,95391.0,95390.0,0.3608]
[1732548155125,0.0004,95391.0,95390.0,0.413208]
[1732548155626,0.02097923,95410.0,95390.0,0.413208]
[1732548155627,0.3608,95440.0,95390.0,1.027688]
[1732548155835,0.052381,95439.0,95418.0,0.052393]
[1732548156028,0.0209824,95437.0,95418.0,0.413193]
[1732548156352,0.00157207,95447.0,95444.0,0.052378]
[1732548156632,0.00157207,95447.0,95438.0,0.3608]
[1732548156934,0.00157207,95447.0,95446.0,0.0012]
[1732548157135,0.00165486,95447.0,95446.0,0.0012]
[1732548157526,0.00165486,95447.0,95446.0,0.362]
[1732548158444,0.63299186,95447.0,95446.0,0.0012]
[1732548158932,0.31709979,95447.0,95446.0,0.0012]
[1732548159027,0.26472279,95447.0,95446.0,0.0012]
[1732548159230,8.279e-05,95447.0,95446.0,0.414377]
[1732548159731,8.279e-05,95447.0,95446.0,0.362]
[1732548159936,8.279e-05,95447.0,95446.0,0.0012]
[1732548160546,8.279e-05,95447.0,95446.0,0.414377]
[1732548161130,8.279e-05,95447.0,95446.0,0.362]
[1732548161436,8.279e-05,95447.0,95446.0,0.414377]
[1732548161830,8.279e-05,95447.0,95446.0,0.362]
[1732548162624,8.279e-05,95447.0,95446.0,0.414377]
[1732548163846,0.413154,95489.0,95446.0,0.728697]
[1732548163847,0.052361,95476.0,95446.0,0.728697]
[1732548164033,0.052356,95485.0,95465.0,0.3608]
[1732548164226,0.052356,95485.0,95474.0,0.3608]
[1732548164526,0.052356,95485.0,95483.0,0.0012]
[1732548164928,0.00167272,95484.0,95483.0,0.0012]
[1732548165536,0.02264819,95484.0,95483.0,0.0012]
[1732548165747,0.28720819,95484.0,95483.0,0.0012]
[1732548166434,0.28720819,95484.0,95483.0,0.362]
[1732548167234,0.00167272,95484.0,95483.0,0.362]
[1732548167842,0.00010137,95484.0,95483.0,0.362]
[1732548168153,0.00010137,95484.0,95483.0,0.0012]
[1732548168348,0.00010137,95484.0,95448.0,0.00076377]
[1732548168349,0.052367,95464.0,95448.0,0.00076377]
[1732548168531,0.052367,95464.0,95463.0,0.0048472]
[1732548168532,0.801327,95464.0,95463.0,0.0048472]
[1732548168744,0.74896,95464.0,95463.0,0.00157117]
[1732548172232,1.0632,95464.0,95463.0,0.00157117]
[1732548172302,0.74896,95464.0,95463.0,0.00157117]
[1732548172835,1.0632,95464.0,95463.0,0.00157117]
[1732548173038,1.08416595,95464.0,95463.0,0.00157117]
[1732548173438,0.76992595,95464.0,95463.0,0.00157117]
[1732548177532,0.76992595,95464.0,95447.0,0.01968639]
[1732548177533,1.74506584,95464.0,95421.0,0.3608]
[1732548177740,1.74506584,95464.0,95426.0,0.00012337]
[1732548177741,0.052388,95427.0,95426.0,0.00012337]
[1732548177942,0.80120071,95427.0,95426.0,0.00012337]
[1732548179644,1.13497359,95427.0,95426.0,0.00012337]
[1732548179944,1.13497359,95427.0,95406.0,0.02079006]
[1732548179945,0.052399,95407.0,95406.0,0.02079006]
[1732548180247,0.052394,95416.0,95409.0,0.052397]
[1732548180440,0.052396,95413.0,95406.0,0.00157206]
[1732548180645,0.26392,95412.0,95409.0,0.052397]
[1732548180836,0.52492005,95427.0,95418.0,0.052393]
[1732548180837,0.48448,95425.0,95418.0,0.052393]
[1732548181139,0.48448,95425.0,95406.0,0.00157206]
[1732548181140,0.26392,95424.0,95406.0,0.00157206]
[1732548181349,0.052399,95407.0,95406.0,0.00157206]
[1732548181543,0.052407,95392.0,95389.0,0.3608]
[1732548181865,0.3608,95422.0,95389.0,0.3608]
[1732548181866,0.052808,95390.0,95389.0,0.3608]
[1732548182039,0.052808,95390.0,95389.0,0.38040549]
[1732548182040,0.801208,95390.0,95389.0,0.38040549]
[1732548182550,0.7488,95390.0,95389.0,0.3608]
[1732548183151,0.48488,95390.0,95389.0,0.3608]
[1732548183751,0.48488,95390.0,95351.0,0.353129]
[1732548183752,0.052424,95361.0,95351.0,0.353129]
[1732548184058,0.316384,95361.0,95360.0,0.3608]
[1732548184691,0.26396,95361.0,95351.0,0.01956217]
[1732548184815,0.3608,95378.0,95360.0,0.3608]
[1732548184954,0.26396,95377.0,95370.0,0.3608]
[1732548185251,0.052418,95373.0,95370.0,0.3608]
[1732548185457,0.26396,95377.0,95373.0,0.052417]
[1732548185649,0.052418,95372.0,95370.0,0.3608]
[1732548185843,0.052418,95372.0,95355.0,0.3608]
[1732548185844,0.052427,95356.0,95355.0,0.3608]
[1732548186047,0.052427,95356.0,95345.0,0.3327]
[1732548186048,0.26396,95356.0,95345.0,0.3327]
[1732548186259,0.316387,95356.0,95355.0,0.3608]
[1732548187536,0.26403656,95356.0,95345.0,0.02017059]
[1732548187788,0.052433,95344.0,95343.0,0.3608]
[1732548188191,0.0004,95346.0,95343.0,0.3608]
[1732548188445,0.0004,95346.0,95345.0,0.0004]
[1732548188653,0.052833,95346.0,95345.0,0.0004]
[1732548190441,0.367473,95346.0,95331.0,0.00157317]
[1732548190653,0.052438,95336.0,95331.0,0.00157317]
[1732548190867,0.316478,95336.0,95331.0,0.00157317]
[1732548191346,0.316878,95336.0,95331.0,0.00157317]
[1732548194845,0.316878,95336.0,95335.0,3.2e-07]
[1732548195054,0.616878,95336.0,95304.0,0.3608]
[1732548195255,0.413244,95326.0,95304.0,0.3608]
[1732548195449,0.48488,95325.0,95312.0,0.3608]
[1732548195957,0.537324,95325.0,95322.0,0.3608]
[1732548196147,0.00012017,95324.0,95322.0,0.3608]
[1732548196546,0.052447,95320.0,95308.0,0.052453]
[1732548196757,0.052447,95320.0,95304.0,0.37971828]
[1732548196758,0.26412,95319.0,95315.0,0.3608]
[1732548197154,0.052449,95316.0,95315.0,0.3608]
[1732548197463,0.052452,95311.0,95304.0,0.37971828]
[1732548197660,0.052449,95316.0,95305.0,0.052455]
[1732548197954,0.26412,95319.0,95315.0,0.0004]
[1732548198258,0.052448,95318.0,95315.0,0.0004]
[1732548198453,0.052449,95316.0,95312.0,0.3608]
[1732548198653,0.00012017,95324.0,95304.0,0.01891828]
[1732548198857,0.00012017,95324.0,95323.0,0.413245]
[1732548199760,0.00012017,95324.0,95323.0,0.3608]
[1732548200454,0.00012017,95324.0,95310.0,0.052452]
[1732548200455,0.00012017,95324.0,95315.0,0.3608]
[1732548200763,0.00012017,95324.0,95323.0,0.3608]
[1732548201359,0.00012017,95324.0,95323.0,0.67552]
[1732548202658,0.74848,95337.0,95333.0,0.052439]
[1732548202866,0.74848,95337.0,95323.0,0.67552]
[1732548202867,0.74848,95337.0,95323.0,0.0189301]
[1732548203322,0.74848,95337.0,95313.0,0.00157354]
[1732548203323,1.161717,95337.0,95336.0,0.0004]
[1732548203484,0.052448,95317.0,95313.0,0.00157354]
[1732548203664,0.31606195,95316.0,95313.0,0.00157354]
[1732548203957,9.295e-05,95316.0,95313.0,0.36237354]
[1732548204154,9.295e-05,95316.0,95315.0,0.052449]
[1732548204649,9.295e-05,95316.0,95315.0,0.367209]
[1732548205054,0.26356,95332.0,95331.0,0.05244]
[1732548205268,0.26356,95332.0,95331.0,0.3608]
[1732548205452,0.26356,95332.0,95331.0,0.0004]
[1732548206047,0.26369303,95332.0,95331.0,0.0004]
[1732548208659,0.26369303,95332.0,95331.0,0.05284]
[1732548209255,1e-08,95332.0,95331.0,0.37604956]
[1732548209761,1e-08,95332.0,95331.0,0.38261034]
[1732548210056,1e-08,95332.0,95331.0,0.40118893]
[1732548210261,1e-08,95332.0,95331.0,0.70118893]
[1732548210761,1e-08,95332.0,95331.0,0.70193437]
[1732548211065,1e-08,95332.0,95331.0,0.70118893]
[1732548211268,0.48504,95356.0,95345.0,0.052433]
[1732548211579,0.00157341,95364.0,95363.0,0.052423]
[1732548211751,0.00157341,95364.0,95359.0,0.3608]
[1732548212066,0.00157341,95364.0,95363.0,0.0004]
[1732548212454,0.26522551,95364.0,95363.0,0.0004]
[1732548212650,0.0001321,95364.0,95363.0,0.0004]
[1732548212852,0.2636521,95364.0,95363.0,0.0004]
[1732548213158,0.0001321,95364.0,95363.0,0.0004]
[1732548213670,0.2636521,95364.0,95363.0,0.0004]
[1732548213856,0.0001321,95364.0,95363.0,0.0004]
[1732548215070,0.0001321,95364.0,95363.0,0.01548765]
[1732548215892,0.0001321,95364.0,95363.0,0.06791065]
[1732548216163,0.0001321,95364.0,95363.0,0.413623]
[1732548216650,0.0001321,95364.0,95363.0,0.42543028]
[1732548216687,0.0001321,95364.0,95363.0,0.74331008]
[1732548216860,0.26352,95380.0,95378.0,0.052414]
[1732548217067,0.26352,95380.0,95379.0,0.3608]
[1732548217260,0.26352,95380.0,95379.0,0.3612]
[1732548217462,0.28451161,95380.0,95379.0,0.3612]
[1732548217857,0.28464264,95380.0,95379.0,0.3612]
[1732548218394,0.28464264,95380.0,95379.0,0.722]
[1732548218395,3e-08,95380.0,95379.0,0.722]
[1732548218602,3e-08,95380.0,95379.0,1.33979928]
[1732548218867,0.052391,95422.0,95385.0,0.05241]
[1732548219073,0.052391,95422.0,95421.0,0.3608]
[1732548219074,0.05239,95422.0,95421.0,0.3608]
[1732548219370,0.05239,95422.0,95421.0,0.0004]
[1732548219571,0.05239,95422.0,95400.0,0.00157256]
[1732548219572,0.052401,95404.0,95400.0,0.00157256]
[1732548219754,0.74858161,95422.0,95400.0,0.00157256]
[1732548219755,7.889e-05,95403.0,95400.0,0.00157256]
[1732548219970,0.052402,95402.0,95400.0,0.00157256]
[1732548220266,7.889e-05,95403.0,95401.0,0.3608]
[1732548220567,7.889e-05,95403.0,95402.0,0.0004]
[1732548221069,0.26348,95423.0,95404.0,0.0524]
[1732548221366,0.26348,95434.0,95419.0,0.3608]
[1732548221665,0.052386,95431.0,95423.0,0.05239]
[1732548222065,0.00010806,95430.0,95423.0,0.05239]
[1732548222383,0.00010806,95430.0,95428.0,0.052387]
[1732548222864,0.00010806,95430.0,95428.0,0.366747]
[1732548223070,0.00010806,95430.0,95428.0,0.052387]
[1732548223462,0.00010806,95430.0,95426.0,0.01895849]
[1732548223780,0.00010806,95430.0,95429.0,0.3608]
[1732548223955,0.00010806,95430.0,95421.0,0.052391]
[1732548224368,0.00010806,95430.0,95419.0,0.3608]
[1732548224693,0.00010806,95430.0,95409.0,0.00157198]
[1732548224694,0.052397,95411.0,95409.0,0.00157198]
[1732548224892,0.2634,95410.0,95409.0,0.00157198]
[1732548225373,0.2634,95410.0,95389.0,0.3608]
[1732548225374,0.052398,95408.0,95389.0,0.3608]
[1732548225672,0.1441999,95399.0,95389.0,0.3608]